Cogmind - Beta 11.1 *** ADVENTURER MODE // 2022.11.07 @ 20:39:27 Player: Marco Result: Self-destructed Performance ------------- Evolutions (1) 500 Regions Visited (2) 400 Robots Destroyed (6) 30 Value Destroyed (101) 101 Prototype IDs (0) 0 Alien Tech Used (0) 0 Bonus (200) 200 TOTAL SCORE: 1231 Bonus ------- Pacifist 200 Cogmind --------- Core Integrity 392/400 Matter 246/300 Energy 125/125 System Corruption 0% Temperature Cool (0) Movement Treading (160) Location -9/Materials Parts ------- > --- POWER (1) -------- Light Ion Engine > --- PROPULSION (3) --- Light Treads Light Treads > --- UTILITY (3) ------ Large Storage Unit Light Armor Plating Medium Armor Plating > --- WEAPON (2) ------- Medium Laser Beam Rifle > --- INVENTORY (15) --- Ion Engine Light Ion Engine Aluminum Leg Wheel Compact Wheel Flight Unit Flight Unit Flight Unit Medium Armor Plating EM Pulse Gun Assault Rifle Peak State ------------ > --- POWER ------------ Light Ion Engine > --- PROPULSION ------- Light Treads Light Treads > --- UTILITY ---------- Large Storage Unit Light Armor Plating Medium Armor Plating > --- WEAPON ----------- Medium Laser Beam Rifle > --- INVENTORY -------- Ion Engine Light Ion Engine Aluminum Leg Wheel Compact Wheel Flight Unit Flight Unit Flight Unit Medium Armor Plating EM Pulse Gun Assault Rifle [Rating: 11] Favorites ----------- Power Light Ion Engine Engine Light Ion Engine Propulsion Light Treads Treads Light Treads Leg Aluminum Leg Flight Unit Flight Unit Utility Large Storage Unit Storage Large Storage Unit Protection Medium Armor Plating Weapon Medium Laser Energy Gun Medium Laser Build | -11 -10 -9 ------- Run | Scr Mat Mat Slots Evolved 2 | . . 2 Power . | . . . Propulsion 1 | . . 1 Utility 1 | . . 1 Weapon . | . . . Parts Attached 26 | 6 . 20 Power 5 | . . 5 Engine 5 | . . 5 Core . | . . . Reactor . | . . . Propulsion 10 | 3 . 7 Treads 5 | 1 . 4 Leg 2 | 2 . . Wheel . | . . . Hover . | . . . Flight 3 | . . 3 Utility 5 | 1 . 4 Device . | . . . Storage 2 | 1 . 1 Processor . | . . . Hackware . | . . . Protection 3 | . . 3 Artifact . | . . . Weapon 6 | 2 . 4 Energy Gun 6 | 2 . 4 Energy Cannon . | . . . Ballistic Gun . | . . . Ballistic Cannon . | . . . Launcher . | . . . Special Weapon . | . . . Impact Weapon . | . . . Slashing Weapon . | . . . Piercing Weapon . | . . . Special Melee Weapon . | . . . Unidentified Prototypes . | . . . Parts Lost . | . . . Power . | . . . Propulsion . | . . . Utility . | . . . Weapon . | . . . Highest Loss Streak . | . . . To Critical Strikes . | . . . Average Slot Usage (%) 70 | . 63 71 Engine 7 | . . 9 Treads 14 | . . 17 Leg 4 | . 20 . Storage 11 | . 14 11 Protection 8 | . . 10 Energy Gun 22 | . 28 21 Naked Turns . | . . . Heaviest Build 38 | 9 9 38 Greatest Support 40 | 20 20 40 Greatest Overweight (x) 9 | . . 9 Average Overweight (x) . | . . . Largest Inventory Capacity 15 | 8 8 15 Average Capacity 11 | 6 8 14 Most Carried 12 | 7 7 12 Average Carried 7 | 5 7 9 Final Capacity 15 | 8 8 15 Final Carried 11 | 7 7 11 Class Distribution -------------------- 100% | Mutant Dominant Class ---------------- Mutant | -10/Materials Mutant | -9/Materials Resources | -11 -10 -9 ----------- Run | Scr Mat Mat Matter Collected 406 | 260 . 146 Remotely . | . . . Salvage Created 146 | . . 146 Parts 17 | . . 17 Haulers Intercepted . | . . . Recyclers Shooed . | . . . Parts Field Recycled . | . . . Retrieved Matter . | . . . Parts Self-Destructed . | . . . Prevented . | . . . Kills | -11 -10 -9 ------- Run | Scr Mat Mat Combat Hostiles Destroyed 5 | . . 5 Guns 5 | . . 5 Classes Destroyed 3 | . . 3 Watcher 1 | . . 1 Swarmer 4 | . . 4 Sentry 1 | . . 1 Best Kill Streak 4 | . . 4 Combat Bots Only 4 | . . 4 Max Kills in Single Turn 1 | . . 1 Gunslinging . | . . . Exploded . | . . . Melee . | . . . Uniques/NPCs Destroyed . | . . . Combat | -11 -10 -9 -------- Run | Scr Mat Mat Damage Taken 75 | . . 75 Core 8 | . . 8 Absorbed by Shields . | . . . Core Remaining (%) 100 | 100 100 . Volleys Fired 8 | . . 8 Largest 2 | . . 2 Hottest 90 | . . 90 Shots Fired 16 | . . 16 Gun 16 | . . 16 Cannon . | . . . Launcher . | . . . Special . | . . . Kinetic . | . . . Thermal 8 | . . 8 Explosive . | . . . Electromagnetic 8 | . . 8 Robot Hit Streak 6 | . . 6 Robot Miss Streak 1 | . . 1 Penetration Max . | . . . Secondary Targets . | . . . Shots Hit Robots 11 | . . 11 Core Hits 7 | . . 7 Critical Kills . | . . . Critical Parts Destroyed . | . . . Critical Strikes . | . . . Melee Attacks . | . . . Impact . | . . . Slashing . | . . . Piercing . | . . . Sneak Attacks . | . . . Combat Hostiles . | . . . Follow-up Attacks . | . . . Damage Inflicted 130 | . . 130 Guns 130 | . . 130 Cannons . | . . . Explosions . | . . . Melee . | . . . Ramming . | . . . Kinetic . | . . . Thermal 50 | . . 50 Explosive . | . . . Electromagnetic 80 | . . 80 Impact . | . . . Slashing . | . . . Piercing . | . . . Highest Corruption . | . . . Average Corruption . | . . . Corruption Purged . | . . . Corruption Blocked . | . . . Overload Shots . | . . . Overflow Damage . | . . . Projectiles . | . . . Explosions . | . . . Melee . | . . . Knockbacks . | . . . Impact . | . . . Kinetic . | . . . Secondary . | . . . Self-Inflicted Damage . | . . . Shots . | . . . Rammed . | . . . Targets Rammed . | . . . Kicked . | . . . Crushed . | . . . Highest Temperature 120 | . . 120 Average Temperature 56 | . . 56 Received Heat Transfer 18 | . . 18 Siege Activations . | . . . Robots Corrupted . | . . . Combat Hostiles . | . . . Parts Fried . | . . . Impact Corruptions . | . . . Robots Melted . | . . . Combat Hostiles . | . . . Parts Melted . | . . . Heat Transferred 148 | . . 148 Parts Sabotaged . | . . . Parts Stolen . | . . . Parts Stripped . | . . . Power Chain Reactions . | . . . Missiles Intercepted . | . . . Alert | -11 -10 -9 ------- Run | Scr Mat Mat Peak Influence 145 | . . 145 Initial . | . . . Average 57 | . . 98 Maximum Alert Level . | . . . Low Security (%) 100 | 100 100 100 Level 1 . | . . . Level 2 . | . . . Level 3 . | . . . Level 4 . | . . . Level 5 . | . . . High Security . | . . . Max Security . | . . . Squads Dispatched . | . . . Investigation . | . . . Extermination . | . . . Reinforcement . | . . . Assault . | . . . Garrison . | . . . Intercept . | . . . Searches Triggered . | . . . Construction Impeded . | . . . Haulers Reinforced . | . . . Active Scanning Responses . | . . . Cargo Convoy Interrupts . | . . . Stealth | -11 -10 -9 --------- Run | Scr Mat Mat Distress Signals . | . . . Communications Jammed . | . . . Distress Signals . | . . . Times Spotted 6 | . . 6 Peak Tracking Total 4 | . . 4 Tactical Retreats . | . . . Traps | -11 -10 -9 ------- Run | Scr Mat Mat Traps Triggered 1 | . 1 . Indirectly . | . . . Trap Hack Attempts . | . . . Triggered . | . . . Disarmed . | . . . Reprogrammed . | . . . Reused . | . . . Traps Extracted . | . . . Installed . | . . . Triggered . | . . . Machines | -11 -10 -9 ---------- Run | Scr Mat Mat Machines Disabled . | . . . Max in Single Turn . | . . . Machines Sabotaged . | . . . Garrisons Compromised . | . . . Overloaded Fab Kills . | . . . Hacking | -11 -10 -9 --------- Run | Scr Mat Mat Machines Accessed . | . . . Terminals . | . . . Fabricators . | . . . Repair Stations . | . . . Recycling Units . | . . . Scanalyzers . | . . . Garrison Access . | . . . Total Hacks . | . . . Successful . | . . . Failed . | . . . Catastrophic . | . . . Database Lockouts . | . . . Manual . | . . . Terminals . | . . . Fabricators . | . . . Repair Stations . | . . . Recycling Units . | . . . Scanalyzers . | . . . Garrison Access . | . . . Terminal Hacks . | . . . Fabricator Hacks . | . . . Repair Station Hacks . | . . . Recycling Unit Hacks . | . . . Scanalyzer . | . . . Garrison Access Hacks . | . . . Unauthorized Hacks . | . . . Terminals . | . . . Fabricators . | . . . Repair Stations . | . . . Recycling Units . | . . . Scanalyzers . | . . . Garrison Access . | . . . Data Cores Recovered . | . . . Used . | . . . Hacking Detections . | . . . Full Trace Events . | . . . Feedback Events . | . . . Feedback Blocked . | . . . Robot Schematics Acquired . | . . . Robots Built . | . . . Authchips . | . . . Time . | . . . Total Robot Build Rating . | . . . Part Schematics Acquired . | . . . Parts Built . | . . . Authchips . | . . . Time . | . . . Total Part Build Rating . | . . . Parts Repaired . | . . . Time . | . . . Parts Recycled . | . . . Recycled Matter . | . . . Retrieved Matter . | . . . Retrieved Components . | . . . Parts Scanalyzed . | . . . Part Schematics Acquired . | . . . Parts Damaged . | . . . Bothacking | -11 -10 -9 ------------ Run | Scr Mat Mat Used RIF Installer . | . . . Robots Hacked . | . . . Non-combat . | . . . Combat . | . . . Robot Hacks Applied . | . . . Relay Couplers Released . | . . . Fabnet Peak Effective % . | . . . Robots Rewired . | . . . Allies Hacked . | . . . Hacks Repelled . | . . . Allies | -11 -10 -9 -------- Run | Scr Mat Mat Total Allies . | . . . Largest Group . | . . . Highest-Rated Group . | . . . Highest-Rated Ally . | . . . Total Orders . | . . . Ally Attacks . | . . . Total Damage . | . . . Kills . | . . . Allies Corrupted . | . . . Allies Melted . | . . . Intel | -11 -10 -9 ------- Run | Scr Mat Mat Robot Analysis Total . | . . . Derelict Logs Recovered . | . . . Drone Launches . | . . . Drone Recoveries . | . . . Exploration | -11 -10 -9 ------------- Run | Scr Mat Mat Turns Passed 592 | 176 68 348 Spaces Moved 369 | 154 57 158 Core 42 | 39 . 3 Treads 144 | . . 144 Legs 182 | 115 57 10 Wheels . | . . . Hover . | . . . Flight 1 | . . 1 Fastest Speed 50 | 50 120 120 Average Speed 133 | 102 120 167 Slowest Speed 500 | 120 120 500 Overloaded Moves . | . . . Propulsion Burnouts . | . . . Robots Hopped . | . . . Cave-ins Triggered . | . . . Exploration Rate (%) 15 | 6 23 17 Regions Visited 2 Branch Regions . Pre-discovered Areas . | . . . Known Exits Taken . | . . . Unknown Exits Taken 2 | 1 1 . Scrap Searched . | . . . Spaces Dug . | . . . Terrain Destroyed . | . . . Melee . | . . . Projectile . | . . . AOE . | . . . Terrain Rammed . | . . . Walls Destroyed . | . . . Machines Disabled . | . . . Actions | -11 -10 -9 --------- Run | Scr Mat Mat Total 461 | 172 56 233 Wait 17 | 2 . 15 Move 367 | 153 56 158 Hop . | . . . Pick Up 22 | 10 . 12 Fast Attach 3 | 2 . 1 Attach 22 | 4 . 18 Detach 16 | 1 . 15 Swap 1 | . . 1 Drop 5 | . . 5 Fire 8 | . . 8 Melee . | . . . Ram . | . . . Kick . | . . . Crush . | . . . Escape Stasis . | . . . Rewire . | . . . Trap . | . . . Miscellaneous . | . . . Route ------- -11/Scrapyard -10/Materials -9/Materials History --------- Turn | Location | Event 7 | -11/Scrapyard | Discovered new exit (range 15) 177 | -11/Scrapyard | Entered Materials 231 | -10/Materials | Discovered new exit (range 9) 245 | -10/Materials | Entered another Materials area 245 | -9/Materials | Evolved 2 slots: Propulsion x1, Utility x1 309 | -9/Materials | Build established: Mutant 593 | -9/Materials | Self-destructed Last Messages --------------- 00389_ W-16 Scout destroyed. 00392_ Acquired 17 matter. 00394_ K-01 Serf collects debris. 00400_ Acquired Med. Armor Plating. 00403_ R-06 Scavenger collects Lgt. Assault Rifle. 00406_ R-06 Scavenger collects Flight Unit. 00411_ R-06 Scavenger collects Hover Unit. 00415_ R-06 Scavenger collects Signal Interpreter. 00419_ R-06 Scavenger collects Sensor Array. 00426_ K-01 Serf collects debris. 00429_ K-01 Serf cleans the Terminal. 00442_ Acquired 20 matter. 00451_ K-01 Serf cleans the Terminal. 00464_ Y-45 Defender destroyed. 00464_ K-01 Serf cleans the Terminal. 00473_ Acquired 56 matter. 00476_ Acquired Beam Rifle. 00484_ Acquired Lgt. Armor Plating. 00486_ R-06 Scavenger collects Lgt. Treads. 00534_ K-01 Serf cleans the Terminal. Map ----- +----------------------------------------------------+ | ??????????????????????????????????????????????? | | ??????????????????????????????????????????????# | | ??????????????????????????????????#########???# | | ??????????????????????????????????# !/ #???# | | ??????????????????????????????????## [! #???# | | ???????????????????????????????????# """ #???# | | ???????????????????????????????????# """ #???# | | ???????????????????###########?????# """ #???# | | ???????????????????# ####### #???# | | ????? ?????????????# ] # ###+######## | | ????? ?????????????# # | | ????? ?????????????# + | | ????? ?????????????# """ """ # """ | | ????? ?????????????# """ """ # """"" | | ????? ?????????????# """ """ # """"" | | ????? ??############ # """"" | | ????# #?# ###+######## """ | | ????# #?# # ###### | | ????# #?# """ """ # T "T" | | ????# #?# """ """ + "" """ | | ????# #?# """ """ # ###########/#### | | ????# #?# # ###+#######???????# # | | ????# #?# ####### #??????????# # | | ????# #?# #?????# #??????????# # | | ????# #####+############# ] #??????????# # | | ????# /@ !!#??????????# # | | ????##################### = ! #??????????# # | | ????????????????????????# #??????????######## | | ????????????????????????########?????????????????# | | ?????????????????????????????????????????????????? | | ?????????????????????????????????????????????????? | | | | | | | | | | | | | | | | | | | | | | | | | | | | | | | | | | | | | | | +----------------------------------------------------+ Best States ------------- Heat Dissipation 28 Energy Generation 10 Energy Capacity 250 Matter Stores 300 Matter Capacity 300 Sight Range 16 Terrain Scan Density 10 Armor Coverage 375 Resistance: KI 20 Resistance: TH 20 Resistance: EX 20 Resistance: EM 20 Resistance: I 20 Resistance: S 20 Resistance: P 20 Evasion (%) 55 Recoil Reduction 2 Offensive Hacking 10 Item Schematics ----------------- None Robot Schematics ------------------ None Fabricated ------------ Nothing Alien Tech Used ----------------- None Achievements -------------- None Challenges ------------ None Game ------ Seed DispersionSurveybotUnit Manual? 0 Play Time 00:09:43 Cumulative 13.8 hours Start 2022.11.06 @ 13:04:01 End 2022.11.07 @ 20:39:27 Sessions 3 Manual Loads 0 Difficulty Adventurer Special Mode None Game No. 39 Rogue 26 Adventurer 13 Explorer 0 Win Type - Total 0 Types 0/0/0/0/0/0/0/0/0 Lore% 15 Gallery% 23 Achievement% 15 Wizard Run 0 Options --------- ASCII 0 Keyboard 0 Movement Numpad Keybinds 1 Fullscreen 1 Font 24/Proggy Map View 113x50 Tactical HUD 1 Map Filters NONE Filters NONE Steam 1 RUN: c6b60ded-c01f-47a6-b356-c9c3f145732c